fUST/lending_fUST_20240725
["ID","MTS","AMOUNT","RATE_DAILY","PERIOD"]
[333102711,1721867438357,-500.0,0.00013698,2]
[333102712,1721867438367,-500.0,0.00013698,2]
[333102713,1721867438376,-500.0,0.00013698,2]
[333102714,1721867438386,-500.0,0.00013698,2]
[333102715,1721867438396,-500.0,0.00013698,2]
[333102716,1721867438405,-500.0,0.00013698,2]
[333102717,1721867438414,-307.34000001,0.00013698,2]
[333102718,1721867438424,-500.0,0.00013698,2]
[333102719,1721867438433,-500.0,0.00013698,2]
[333102720,1721867438443,-500.0,0.00013698,2]
[333102721,1721867438453,-500.0,0.00013698,2]
[333102722,1721867438462,-610.67,0.00013698,2]
[333102723,1721867438474,-500.0,0.00013698,2]
[333102724,1721867438483,-921.46,0.00013698,2]
[333102725,1721867438493,-921.46,0.00013698,2]
[333102726,1721867438502,-921.46,0.00013698,2]
[333102727,1721867438512,-921.46,0.00013698,2]
[333102728,1721867438521,-921.46,0.00013698,2]
[333102729,1721867438531,-500.0,0.00013698,2]
[333102730,1721867438541,-921.46,0.00013698,2]
[333102731,1721867438551,-921.46,0.00013698,2]
[333102732,1721867438560,-921.46,0.00013698,2]
[333102733,1721867438570,-921.46,0.00013698,2]
[333102734,1721867438581,-921.46,0.00013698,2]
[333102735,1721867438591,-921.46,0.00013698,2]
[333102736,1721867438602,-921.46,0.00013698,2]
[333102737,1721867438621,-921.46,0.00013698,2]
[333102738,1721867438632,-921.46,0.00013698,2]
[333102739,1721867438643,-921.46,0.00013698,2]
[333102740,1721867438654,-921.46,0.00013698,2]
[333102741,1721867438668,-921.46,0.00013698,2]
[333102742,1721867438679,-921.46,0.00013698,2]
[333102743,1721867438694,-921.46,0.00013698,2]
[333102744,1721867438707,-921.46,0.00013698,2]
[333102745,1721867438716,-921.46,0.00013698,2]
[333102746,1721867438726,-921.46,0.00013698,2]
[333102747,1721867438735,-921.46,0.00013698,2]
[333102748,1721867438745,-921.6,0.00013698,2]
[333102749,1721867438755,-1822.63,0.00013698,2]
[333102750,1721867438764,-500.0,0.00013698,2]
[333102751,1721867438773,-500.0,0.00013698,2]
[333102752,1721867438783,-500.0,0.00013698,2]
[333102753,1721867438793,-500.89620177,0.00013698,2]
[333102754,1721867438803,-500.0,0.00013698,2]
[333102755,1721867438813,-500.0,0.00013698,2]
[333102756,1721867438823,-501.48343815,0.00013698,2]
[333102757,1721867438832,-500.0,0.00013698,2]
[333102758,1721867438843,-500.0,0.00013698,2]
[333102759,1721867438853,-500.0,0.00013698,2]
[333102760,1721867438863,-500.0,0.00013698,2]
[333102761,1721867438872,-500.0,0.00013698,2]
[333102762,1721867438882,-500.0,0.00013698,2]
[333102763,1721867438892,-507.26400796,0.00013698,2]
[333102764,1721867438902,-500.0,0.00013698,2]
[333102765,1721867438912,-500.0,0.00013698,2]
[333102766,1721867438922,-500.0,0.00013698,2]
[333102767,1721867438932,-449.45052723,0.00013698,2]
[333102768,1721867438942,-500.0,0.00013698,2]
[333102769,1721867438951,-748.25,0.00013698,2]
[333102770,1721867438961,-618.7,0.00013698,2]
[333102771,1721867438970,-500.0,0.00013698,2]
[333102772,1721867438980,-504.60222625,0.00013698,2]
[333102773,1721867438990,-500.0,0.00013698,2]
[333102774,1721867438999,-500.0,0.00013698,2]
[333102775,1721867439009,-500.0,0.00013698,2]
[333102776,1721867439018,-1778.21,0.00013698,2]
[333102777,1721867439028,-500.0,0.00013698,2]
[333102778,1721867439037,-500.0,0.00013698,2]
[333102779,1721867439047,-500.0,0.00013698,2]
[333102780,1721867439056,-500.0,0.00013698,2]
[333102781,1721867439068,-500.0,0.00013698,2]
[333102782,1721867439081,-500.0,0.00013698,2]
[333102783,1721867439091,-500.0,0.00013698,2]
[333102784,1721867439101,-375.4855311,0.00013698,2]
[333102785,1721867439112,-1403.93,0.00013698,2]
[333102786,1721867439124,-500.0,0.00013698,2]
[333102787,1721867439134,-500.0,0.00013698,2]
[333102788,1721867439144,-234.57271414,0.00013698,2]
[333102789,1721867439153,-500.0,0.00013698,2]
[333102790,1721867439163,-500.0,0.00013698,2]
[333102791,1721867439173,-500.0,0.00013698,2]
[333102792,1721867439182,-500.0,0.00013698,2]
[333102793,1721867439192,-1799.89,0.00013698,2]
[333102794,1721867439204,-690.88,0.00013698,2]
[333102795,1721867439214,-500.0,0.00013698,2]
[333102796,1721867439224,-500.0,0.00013698,2]
[333102797,1721867439234,-500.0,0.00013698,2]
[333102798,1721867439244,-1060.54,0.00013698,2]
[333102799,1721867439253,-500.0,0.00013698,2]
[333102800,1721867439263,-500.0,0.00013698,2]
[333102801,1721867439272,-500.0,0.00013698,2]
[333102802,1721867439281,-500.0,0.00013698,2]
[333102803,1721867439291,-580.58,0.00013698,2]
[333102804,1721867439302,-1430.15,0.00013698,2]
[333102805,1721867439311,-500.0,0.00013698,2]
[333102806,1721867439321,-500.0,0.00013698,2]
[333102807,1721867439488,-500.0,0.00013698,2]
[333102808,1721867439498,-500.0,0.00013698,2]
[333102809,1721867439508,-1680.72,0.00013698,2]
[333102810,1721867439518,-500.0,0.00013698,2]
[333102811,1721867439527,-1230.28,0.00013698,2]
[333102812,1721867439536,-500.0,0.00013698,2]
[333102813,1721867439546,-954.4,0.00013698,2]
[333102814,1721867439555,-500.0,0.00013698,2]
[333102815,1721867439565,-1516.42,0.00013698,2]
[333102816,1721867439574,-199.87403303,0.00013698,2]
[333102817,1721867439584,-500.0,0.00013698,2]
[333102818,1721867439593,-500.0,0.00013698,2]
[333102819,1721867439602,-500.0,0.00013698,2]
[333102820,1721867439612,-500.0,0.00013698,2]
[333102821,1721867439621,-1492.34,0.00013698,2]
[333102822,1721867439631,-701.83,0.00013698,2]
[333102823,1721867439641,-500.0,0.00013698,2]
[333102824,1721867439650,-500.0,0.00013698,2]
[333102825,1721867439660,-676.56,0.00013698,2]
[333102826,1721867439670,-500.0,0.00013698,2]
[333102828,1721867439680,-500.0,0.00013698,2]
[333102830,1721867439691,-500.0,0.00013698,2]
[333102831,1721867439702,-500.0,0.00013698,2]
[333102832,1721867439713,-1147.55,0.00013698,2]
[333102833,1721867439725,-500.0,0.00013698,2]
[333102834,1721867439736,-500.0,0.00013698,2]
[333102836,1721867439746,-500.0,0.00013698,2]
[333102838,1721867439756,-500.0,0.00013698,2]
[333102839,1721867439766,-685.36,0.00013698,2]
[333102840,1721867439777,-1247.9,0.00013698,2]
[333102841,1721867439787,-500.0,0.00013698,2]
[333102842,1721867439798,-500.0,0.00013698,2]
[333102843,1721867439808,-500.0,0.00013698,2]
[333102844,1721867439818,-584.89,0.00013698,2]
[333102845,1721867439828,-500.0,0.00013698,2]
[333102846,1721867439838,-500.0,0.00013698,2]
[333102847,1721867439848,-500.0,0.00013698,2]
[333102848,1721867439858,-720.17,0.00013698,2]
[333102849,1721867439867,-809.64,0.00013698,2]
[333102850,1721867439877,-500.0,0.00013698,2]
[333102851,1721867439887,-500.0,0.00013698,2]
[333102852,1721867439897,-1160.79,0.00013698,2]
[333102853,1721867439908,-500.0,0.00013698,2]
[333102855,1721867439919,-533.41,0.00013698,2]
[333102857,1721867439930,-500.0,0.00013698,2]
[333102859,1721867439940,-500.0,0.00013698,2]
[333102860,1721867439950,-500.0,0.00013698,2]
[333102861,1721867439961,-500.0,0.00013698,2]
[333102862,1721867439970,-500.0,0.00013698,2]
[333102863,1721867439979,-500.0,0.00013698,2]
[333102864,1721867439989,-1013.93,0.00013698,2]
[333102865,1721867439998,-1409.3,0.00013698,2]
[333102866,1721867440007,-1579.88,0.00013698,2]
[333102867,1721867440018,-500.0,0.00013698,2]
[333102868,1721867440030,-598.98166969,0.00013698,2]
[333102869,1721867440041,-500.0,0.00013698,2]
[333102870,1721867440052,-500.0,0.00013698,2]
[333102871,1721867440061,-500.0,0.00013698,2]
[333102872,1721867440071,-500.0,0.00013698,2]
[333102873,1721867440082,-500.0,0.00013698,2]
[333102874,1721867440092,-282.22,0.00013698,2]
[333102875,1721867440103,-504.64394764,0.00013698,2]
[333102876,1721867440114,-1745.34,0.00013698,2]
[333102877,1721867440130,-500.0,0.00013698,2]
[333102878,1721867440141,-500.0,0.00013698,2]
[333102879,1721867440151,-500.0,0.00013698,2]
[333102880,1721867440163,-515.53,0.00013698,2]
[333102881,1721867440174,-500.0,0.00013698,2]
[333102882,1721867440186,-500.0,0.00013698,2]
[333102883,1721867440196,-500.0,0.00013698,2]
[333102884,1721867440209,-500.0,0.00013698,2]
[333102885,1721867440220,-500.0,0.00013698,2]
[333102886,1721867440231,-500.0,0.00013698,2]
[333102887,1721867440242,-500.0,0.00013698,2]
[333102888,1721867440253,-500.0,0.00013698,2]
[333102889,1721867440264,-1030.73,0.00013698,2]
[333102890,1721867440277,-500.0,0.00013698,2]
[333102891,1721867440288,-1028.58,0.00013698,2]
[333102892,1721867440300,-513.38,0.00013698,2]
[333102893,1721867440310,-500.0,0.00013698,2]
[333102894,1721867440321,-500.0,0.00013698,2]
[333102895,1721867440332,-500.0,0.00013698,2]
[333102896,1721867440341,-500.0,0.00013698,2]
[333102897,1721867440352,-500.0,0.00013698,2]
[333102898,1721867440362,-500.0,0.00013698,2]
[333102899,1721867440373,-500.0,0.00013698,2]
[333102900,1721867440385,-500.0,0.00013698,2]
[333102901,1721867440397,-1019.04,0.00013698,2]
[333102902,1721867440407,-1871.48,0.00013698,2]
[333102903,1721867440417,-616.36,0.00013698,2]
[333102904,1721867440428,-500.0,0.00013698,2]
[333102905,1721867440439,-500.0,0.00013698,2]
[333102906,1721867440451,-806.28,0.00013698,2]
[333102907,1721867440463,-478.39939361,0.00013698,2]
[333102908,1721867440474,-3896.63,0.00013698,2]
[333102909,1721867440485,-500.0,0.00013698,2]
[333102910,1721867440496,-500.0,0.00013698,2]
[333102911,1721867440508,-1431.23,0.00013698,2]
[333102912,1721867440518,-500.0,0.00013698,2]
[333102913,1721867440530,-500.0,0.00013698,2]
[333102914,1721867440540,-500.0,0.00013698,2]
[333102915,1721867440551,-500.0,0.00013698,2]
[333102916,1721867440563,-8724.8,0.00013698,2]
[333102917,1721867440575,-858.43,0.00013698,2]
[333102918,1721867440585,-247.20075316,0.00013698,2]
[333102919,1721867440596,-385.48735477,0.00013698,2]
[333102920,1721867440606,-500.0,0.00013698,2]
[333102921,1721867440616,-3925.46,0.00013698,2]
[333102922,1721867440626,-729.39,0.00013698,2]
[333102923,1721867440637,-500.0,0.00013698,2]
[333102924,1721867440649,-500.0,0.00013698,2]
[333102925,1721867440661,-177.28501325,0.00013698,2]
[333102926,1721867440673,-500.0,0.00013698,2]
[333102927,1721867440684,-500.0,0.00013698,2]
[333102928,1721867440695,-501.20525823,0.00013698,2]
[333102929,1721867440705,-500.55675731,0.00013698,2]
[333102930,1721867440716,-500.0,0.00013698,2]
[333102931,1721867440728,-500.0,0.00013698,2]
[333102932,1721867440740,-622.57,0.00013698,2]
[333102933,1721867440749,-1518.48,0.00013698,2]
[333102934,1721867440759,-500.0,0.00013698,2]
[333102935,1721867440769,-500.0,0.00013698,2]
[333102936,1721867440778,-2080.54,0.00013698,2]
[333102937,1721867440788,-2431.0,0.00013698,2]
[333102938,1721867440798,-2431.0,0.00013698,2]
[333102939,1721867440808,-2431.0,0.00013698,2]
[333102940,1721867440818,-2431.0,0.00013698,2]
[333102941,1721867440828,-500.0,0.00013698,2]
[333102942,1721867440837,-2431.0,0.00013698,2]
[333102943,1721867440848,-2431.0,0.00013698,2]
[333102944,1721867440858,-2431.0,0.00013698,2]
[333102945,1721867440867,-2431.0,0.00013698,2]
[333102946,1721867440878,-2431.0,0.00013698,2]
[333102947,1721867440888,-2431.0,0.00013698,2]
[333102948,1721867440897,-2431.0,0.00013698,2]
[333102949,1721867440907,-500.0,0.00013698,2]
[333102950,1721867440917,-189.09951702,0.00013698,2]
[333102951,1721867440926,-662.57,0.00013698,2]
[333102952,1721867440936,-500.0,0.00013698,2]
[333102953,1721867440946,-500.0,0.00013698,2]
[333102954,1721867440956,-500.0,0.00013698,2]
[333102955,1721867440966,-500.0,0.00013698,2]
[333102956,1721867440977,-500.0,0.00013698,2]
[333102957,1721867440986,-500.0,0.00013698,2]
[333102958,1721867440997,-500.0,0.00013698,2]
[333102959,1721867441009,-3894.74,0.00013698,2]
[333102960,1721867441022,-500.0,0.00013698,2]
[333102961,1721867441032,-1743.24,0.00013698,2]
[333102962,1721867441045,-500.0,0.00013698,2]
[333102963,1721867441055,-500.0,0.00013698,2]
[333102964,1721867441067,-500.0,0.00013698,2]
[333102965,1721867441079,-500.0,0.00013698,2]
[333102966,1721867441090,-1428.91,0.00013698,2]
[333102967,1721867441102,-500.0,0.00013698,2]
[333102968,1721867441113,-2063.01,0.00013698,2]
[333102969,1721867441126,-500.0,0.00013698,2]
[333102970,1721867441137,-500.0,0.00013698,2]
[333102971,1721867441148,-500.0,0.00013698,2]
[333102972,1721867441159,-500.0,0.00013698,2]
[333102973,1721867441172,-500.0,0.00013698,2]
[333102974,1721867441182,-500.0,0.00013698,2]
[333102975,1721867441192,-500.0,0.00013698,2]
[333102976,1721867441204,-500.0,0.00013698,2]
[333102977,1721867441214,-500.0,0.00013698,2]
[333102978,1721867441226,-456.68955826,0.00013698,2]
[333102979,1721867441236,-500.0,0.00013698,2]
[333102980,1721867441249,-502.69132394,0.00013698,2]
[333102981,1721867441261,-500.0,0.00013698,2]
[333102982,1721867441271,-1168.33,0.00013698,2]
[333102983,1721867441284,-500.0,0.00013698,2]
[333102984,1721867441296,-525.3,0.00013698,2]
[333102985,1721867441307,-2564.96,0.00013698,2]
[333102986,1721867441319,-722.09,0.00013698,2]
[333102987,1721867441329,-566.88,0.00013698,2]
[333102988,1721867441342,-273.02582686,0.00013698,2]
[333102989,1721867441353,-500.0,0.00013698,2]
[333102990,1721867441363,-719.76,0.00013698,2]
[333102991,1721867441372,-500.0,0.00013698,2]
[333102992,1721867441382,-500.0,0.00013698,2]
[333102993,1721867441396,-3998.41,0.00013698,2]
[333102994,1721867441408,-12546.53,0.00013698,2]
[333102995,1721867441421,-510.54009372,0.00013698,2]
[333102996,1721867441434,-500.0,0.00013698,2]
[333102997,1721867441447,-500.0,0.00013698,2]
[333102998,1721867441458,-506.79763498,0.00013698,2]
[333102999,1721867441469,-1741.93,0.00013698,2]
[333103000,1721867441481,-500.0,0.00013698,2]
[333103001,1721867441497,-500.0,0.00013698,2]
[333103002,1721867441510,-939.23,0.00013698,2]
[333103003,1721867441523,-500.0,0.00013698,2]
[333103004,1721867441536,-500.0,0.00013698,2]
[333103005,1721867441549,-500.0,0.00013698,2]
[333103006,1721867441562,-683.96,0.00013698,2]
[333103007,1721867441577,-500.0,0.00013698,2]
[333103008,1721867441590,-500.0,0.00013698,2]
[333103009,1721867441605,-778.24,0.00013698,2]
[333103010,1721867441618,-2400.85,0.00013698,2]
[333103011,1721867441633,-1485.08,0.00013698,2]
[333103012,1721867441646,-5966.46,0.00013698,2]
[333103013,1721867441658,-500.0,0.00013698,2]
[333103014,1721867441671,-8866.82,0.00013698,2]
[333103015,1721867441684,-500.0,0.00013698,2]
[333103016,1721867441696,-500.0,0.00013698,2]
[333103017,1721867441710,-500.0,0.00013698,2]
[333103018,1721867441723,-500.0,0.00013698,2]
[333103019,1721867441737,-1560.59,0.00013698,2]
[333103020,1721867441749,-500.0,0.00013698,2]
[333103021,1721867441762,-500.0,0.00013698,2]
[333103022,1721867441774,-500.0,0.00013698,2]
[333103023,1721867441788,-2379.61,0.00013698,2]
[333103024,1721867441800,-2486.09,0.00013698,2]
[333103025,1721867441813,-500.0,0.00013698,2]
[333103026,1721867441824,-500.0,0.00013698,2]
[333103027,1721867441836,-1267.14,0.00013698,2]
[333103028,1721867441848,-500.0,0.00013698,2]
[333103029,1721867441861,-4380.96,0.00013698,2]
[333103030,1721867441874,-9855.36,0.00013698,2]
[333103031,1721867441886,-500.0,0.00013698,2]
[333103032,1721867441898,-500.0,0.00013698,2]
[333103033,1721867441911,-500.0,0.00013698,2]
[333103034,1721867441924,-500.0,0.00013698,2]
[333103035,1721867441939,-2010.43,0.00013698,2]
[333103036,1721867441952,-500.0,0.00013698,2]
[333103037,1721867441964,-500.0,0.00013698,2]
[333103038,1721867441974,-500.0,0.00013698,2]
[333103039,1721867441985,-672.61,0.00013698,2]
[333103040,1721867441997,-847.81,0.00013698,2]
[333103041,1721867442008,-1555.85,0.00013698,2]
[333103042,1721867442020,-500.0,0.00013698,2]
[333103043,1721867442033,-1651.05,0.00013698,2]
[333103044,1721867442046,-500.0,0.00013698,2]
[333103045,1721867442057,-500.0,0.00013698,2]
[333103046,1721867442069,-4627.17,0.00013698,2]
[333103047,1721867442081,-500.0,0.00013698,2]
[333103048,1721867442091,-992.41,0.00013698,2]
[333103049,1721867442104,-500.0,0.00013698,2]
[333103050,1721867442114,-482.01036955,0.00013698,2]
[333103051,1721867442129,-608.09084378,0.00013698,2]
[333103052,1721867442141,-1740.18,0.00013698,2]
[333103053,1721867442153,-2032.5,0.00013698,2]
[333103054,1721867442164,-654.74,0.00013698,2]
[333103055,1721867442175,-1019.27,0.00013698,2]
[333103056,1721867442186,-3253.45,0.00013698,2]
[333103057,1721867442197,-500.0,0.00013698,2]
[333103058,1721867442209,-500.0,0.00013698,2]
[333103059,1721867442221,-610.66608731,0.00013698,2]
[333103060,1721867442233,-500.0,0.00013698,2]
[333103061,1721867442247,-654.18154393,0.00013698,2]
[333103062,1721867442259,-654.18154393,0.00013698,2]
[333103063,1721867442271,-500.0,0.00013698,2]
[333103064,1721867442282,-654.18154393,0.00013698,2]
[333103065,1721867442293,-654.18154393,0.00013698,2]
[333103066,1721867442305,-500.0,0.00013698,2]
[333103067,1721867442318,-654.18154393,0.00013698,2]
[333103068,1721867442330,-251.11625069,0.00013698,2]
[333103069,1721867442343,-654.18154393,0.00013698,2]
[333103070,1721867442356,-500.0,0.00013698,2]
[333103071,1721867442368,-500.0,0.00013698,2]
[333103072,1721867442379,-654.18154393,0.00013698,2]
[333103073,1721867442392,-654.18154393,0.00013698,2]
[333103074,1721867442404,-500.0,0.00013698,2]
[333103075,1721867442416,-654.18154393,0.00013698,2]
[333103076,1721867442428,-654.18154393,0.00013698,2]
[333103077,1721867442443,-654.18154393,0.00013698,2]
[333103078,1721867442454,-654.18154393,0.00013698,2]
[333103080,1721867442467,-500.0,0.00013698,2]
[333103082,1721867442478,-629.24140698,0.00013698,2]
[333103090,1721867442713,-24.94013695,0.00013698,2]
[333103092,1721867442726,-500.0,0.00013698,2]
[333103093,1721867442739,-500.0,0.00013698,2]
[333103094,1721867442751,-500.0,0.00013698,2]
[333103095,1721867442763,-500.0,0.00013698,2]
[333103096,1721867442775,-500.0,0.00013698,2]
[333103097,1721867442788,-263.52784323,0.00013698,2]
[333103100,1721867443028,-236.47215677,0.00013698,2]
[333103101,1721867443040,-406.46883192,0.00013698,2]
[333103102,1721867443058,-93.53116808,0.00013698,2]
[333103104,1721867443069,-500.0,0.00013698,2]
[333103106,1721867443081,-500.0,0.00013698,2]
[333103107,1721867443092,-418.0273668,0.00013698,2]
[333103108,1721867443801,-81.9726332,0.00013698,2]
[333103109,1721867443813,-266.91993252,0.00013698,2]
[333103110,1721867443825,-387.26161141,0.00013698,2]
[333103111,1721867443835,-500.0,0.00013698,2]
[333103112,1721867443845,-229.94582287,0.00013698,2]
[333103122,1721867446996,-270.05417713,0.00013698,2]
[333103123,1721867447007,-500.0,0.00013698,2]
[333103124,1721867447018,-500.0,0.00013698,2]
[333103125,1721867447029,-654.18154393,0.00013698,2]
[333103126,1721867447039,-500.0,0.00013698,2]
[333103127,1721867447058,-500.0,0.00013698,2]
[333103128,1721867447070,-500.0,0.00013698,2]
[333103129,1721867447085,-654.18154393,0.00013698,2]
[333103130,1721867447095,-500.0,0.00013698,2]
[333103131,1721867447106,-500.0,0.00013698,2]
[333103132,1721867447116,-500.0,0.00013698,2]
[333103133,1721867447128,-205.26359745,0.00013698,2]
[333103134,1721867553113,1000.0,0.00025,120]
[333103140,1721868415164,-300.80868013,9.898e-05,2]
[333103141,1721868445107,-200.0,9.9e-05,2]
[333103142,1721868445132,-250.0,9.952e-05,2]
[333103143,1721868445154,-300.0,9.998e-05,2]
[333103144,1721868445176,-300.0,9.998e-05,2]
[333103145,1721868445197,-559.54010187,9.999e-05,2]
[333103148,1721868546119,-273.37336231,9.799e-05,2]
[333103149,1721868546144,-206.16981217,9.8e-05,2]
[333103150,1721868546166,-200.0,9.8e-05,2]
[333103151,1721868546190,-300.0,9.885e-05,2]
[333103152,1721868546215,-24900.0,9.886e-05,2]
[333103153,1721868546237,-408.68307623,9.999e-05,2]
[333103154,1721868546258,-201.27243595,9.999e-05,2]
[333103155,1721868546283,-941.73928157,9.999e-05,2]
[333103156,1721868546306,-375.56627462,9.999e-05,2]
[333103157,1721868546330,-156.56045866,9.999e-05,2]
[333103158,1721868546352,-459.13593927,9.999e-05,2]
[333103159,1721868546376,-778.93457464,9.999e-05,2]
[333103160,1721868546400,-567.88989652,9.999e-05,2]
[333103161,1721868546425,-154.76015882,9.999e-05,2]
[333103162,1721868546451,-188.05852618,9.999e-05,2]
[333103163,1721868546476,-542.48310742,9.999e-05,2]
[333103164,1721868546498,-154.71377951,9.999e-05,2]
[333103165,1721868546523,-154.82195475,9.999e-05,2]
[333103166,1721868546548,-173.22317033,9.999e-05,2]
[333103167,1721868546574,-154.71377951,0.0001,2]
[333103168,1721868558773,161.16282976,9.999e-05,2]
[333103169,1721868571120,-919.7218057,0.00010341,2]
[333103170,1721868571146,-250.0,0.00010638,2]
[333103171,1721868571170,-250.0,0.00010667,2]
[333103172,1721868571194,-250.0,0.00010696,2]
[333103173,1721868571219,-250.0,0.00010725,2]
[333103174,1721868571246,-250.0,0.00010754,2]
[333103175,1721868571271,-250.0,0.00010783,2]
[333103176,1721868571294,-250.0,0.00010813,2]
[333103177,1721868571315,-250.0,0.00010842,2]
[333103178,1721868571336,-250.0,0.00010871,2]
[333103179,1721868571358,-420.0,0.00010874,2]
[333103180,1721868571379,-250.0,0.000109,2]
[333103181,1721868571402,-250.0,0.00010929,2]
[333103182,1721868571430,-250.0,0.00010959,2]
[333103183,1721868571452,-177.5,0.00010959,2]
[333103184,1721868571477,-887.55,0.00010959,2]
[333103185,1721868571503,-250.0,0.00010988,2]
[333103186,1721868571527,-250.0,0.00011017,2]
[333103187,1721868571554,-250.0,0.00011046,2]
[333103188,1721868571578,-250.0,0.00011075,2]
[333103189,1721868571601,-250.0,0.00011104,2]
[333103190,1721868571625,-250.0,0.00011134,2]
[333103191,1721868571648,-250.0,0.00011163,2]
[333103192,1721868571670,-400.0,0.0001117,2]
[333103193,1721868571694,-250.0,0.00011192,2]
[333103194,1721868571718,-350.0,0.00011236,2]
[333103195,1721868571740,-3031.4474084,0.00011279,2]
[333103196,1721868571763,-587.0,0.00011961,2]
[333103197,1721868571786,-579.48446728,0.0001212,2]
[333103198,1721868571808,-188.93335281,0.0001212,2]
[333103199,1721868597312,200.0,0.0001,2]
[333103200,1721868597500,400.0,0.0001137,2]
[333103201,1721868598222,941.73928157,0.00012121,2]
[333103243,1721868632194,-338.5136921,0.0001244,2]
[333103245,1721868632204,-206.6937542,0.00013096,2]
[333103247,1721868632214,-300.0,0.00013099,2]
[333103249,1721868632225,-1628.1995202,0.000131,5]
[333103354,1721868638056,-8377.15162272,0.000131,5]
[333103355,1721868638069,-600.0,0.00013147,2]
[333103356,1721868638081,-200.0,0.00013425,2]
[333103357,1721868638091,-264.12257004,0.0001355,2]
[333103358,1721868638101,-498.27032397,0.0001355,2]
[333103359,1721868638881,-300.27658139,0.0001355,2]
[333103360,1721868638891,-264.12257,0.00013562,2]
[333103361,1721868638902,-179.60084861,0.00013574,2]
[333103362,1721868638923,-84.52172139,0.00013574,2]
[333103363,1721868638933,-264.12257,0.00013586,2]
[333103364,1721868638943,-653.85393704,0.0001359,2]
[333103365,1721868638955,-12800.80121666,0.0001359,2]
[333103366,1721868638965,-264.12257,0.00013598,2]
[333103367,1721868638974,-2000.0,0.00013598,2]
[333103368,1721868638984,-83787.00756501,0.000136,2]
[333103369,1721868638994,-13454.6551537,0.0001365,2]
[333103370,1721868639006,-11522.22474314,0.0001366,2]
[333103371,1721868639016,-94182.5860763,0.00013688,2]
[333103372,1721868639026,-500.0,0.00013698,2]
[333103373,1721868639036,-500.0,0.00013698,2]
[333103374,1721868639048,-500.0,0.00013698,2]
[333103375,1721868639057,-500.0,0.00013698,2]
[333103376,1721868639067,-500.0,0.00013698,2]
[333103377,1721868639076,-500.0,0.00013698,2]
[333103378,1721868639086,-500.0,0.00013698,2]
[333103379,1721868639095,-500.0,0.00013698,2]
[333103380,1721868639104,-500.0,0.00013698,2]
[333103381,1721868639114,-462.7,0.00013698,2]
[333103382,1721868639124,-500.0,0.00013698,2]
[333103383,1721868639133,-500.0,0.00013698,2]
[333103384,1721868639145,-502.31498446,0.00013698,2]
[333103385,1721868639154,-374.31411848,0.00013698,2]
[333103386,1721868639164,-512.73288038,0.00013698,2]
[333103387,1721868639173,-500.0,0.00013698,2]
[333103388,1721868639183,-600.93614671,0.00013698,2]
[333103389,1721868639192,-500.0,0.00013698,2]
[333103390,1721868639202,-500.0,0.00013698,2]
[333103391,1721868639211,-500.0,0.00013698,2]
[333103392,1721868639221,-500.0,0.00013698,2]
[333103393,1721868639373,-481.14625723,0.00013698,2]
[333103394,1721868639418,-500.0,0.00013698,2]
[333103395,1721868639428,-648.37,0.00013698,2]